fUSD/lending_fUSD_20260629
["ID","MTS","AMOUNT","RATE_DAILY","PERIOD"]
[426689844,1782745841000,-349.71392334,0.00026451,2]
[426689843,1782745841000,-343.58863166,0.00026451,2]
[426689846,1782745841000,-308.73157937,0.00026451,2]
[426689848,1782745841000,-166.72601345,0.00026451,2]
[426689847,1782745841000,-174.66646554,0.00026451,2]
[426689849,1782745841000,-419.73813405,0.00026451,2]
[426689802,1782745841000,-402.09013188,0.00026443,2]
[426689850,1782745841000,-178.93603588,0.00026451,2]
[426689836,1782745841000,-230.18746251,0.00026443,2]
[426689819,1782745841000,-690.46063983,0.00026443,2]
[426689845,1782745841000,-158.67203577,0.00026451,2]
[426689829,1782745841000,-438.13818679,0.00026443,2]
[426689828,1782745841000,-625.29276288,0.00026443,2]
[426689792,1782745841000,-150.0,0.00026348,7]
[426689797,1782745841000,-585.18909258,0.00026443,2]
[426689795,1782745841000,-150.0,0.00026412,7]
[426689793,1782745841000,-388.24831335,0.00026397,2]
[426689789,1782745841000,-500.0,0.00026334,2]
[426689794,1782745841000,-7866.63034009,0.000264,2]
[426689791,1782745841000,-150.0,0.00026335,7]
[426689798,1782745841000,-561.58501433,0.00026443,2]
[426689796,1782745841000,-150.0,0.00026412,7]
[426689799,1782745841000,-545.2065213,0.00026443,2]
[426689803,1782745841000,-632.13783935,0.00026443,2]
[426689810,1782745841000,-394.21462644,0.00026443,2]
[426689806,1782745841000,-339.5826762,0.00026443,2]
[426689790,1782745841000,-500.0,0.00026334,2]
[426689809,1782745841000,-413.40078519,0.00026443,2]
[426689821,1782745841000,-545.74044704,0.00026443,2]
[426689818,1782745841000,-724.52272287,0.00026443,2]
[426689811,1782745841000,-171.48095675,0.00026443,2]
[426689812,1782745841000,-572.17661075,0.00026443,2]
[426689814,1782745841000,-301.40814249,0.00026443,2]
[426689813,1782745841000,-554.75177654,0.00026443,2]
[426689816,1782745841000,-182.11338867,0.00026443,2]
[426689805,1782745841000,-435.58082245,0.00026443,2]
[426689807,1782745841000,-662.87561883,0.00026443,2]
[426689815,1782745841000,-359.82083652,0.00026443,2]
[426689808,1782745841000,-582.9180648,0.00026443,2]
[426689804,1782745841000,-287.75639426,0.00026443,2]
[426689886,1782745842000,-296.29301605,0.00026795,7]
[426689896,1782745842000,-151.0,0.000268,2]
[426689888,1782745842000,-150.0,0.00026795,7]
[426689887,1782745842000,-150.0,0.00026795,7]
[426689890,1782745842000,-150.0,0.00026795,7]
[426689883,1782745842000,-150.0,0.00026718,7]
[426689885,1782745842000,-150.0,0.00026795,7]
[426689882,1782745842000,-502.0,0.00026692,10]
[426689881,1782745842000,-150.0,0.00026641,7]
[426689879,1782745842000,-151.09934801,0.00026606,2]
[426689889,1782745842000,-150.0,0.00026795,7]
[426689893,1782745842000,-151.0,0.000268,2]
[426689903,1782745842000,-500.0,0.000268,2]
[426689895,1782745842000,-151.301244,0.000268,2]
[426689892,1782745842000,-921353.22003018,0.000268,2]
[426689891,1782745842000,-271.59492068,0.00026795,7]
[426689907,1782745842000,-500.0,0.000268,2]
[426689899,1782745842000,-500.0,0.000268,2]
[426689908,1782745842000,-500.0,0.000268,2]
[426689905,1782745842000,-500.0,0.000268,2]
[426689901,1782745842000,-500.0,0.000268,2]
[426689900,1782745842000,-500.0,0.000268,2]
[426689902,1782745842000,-500.0,0.000268,2]
[426689898,1782745842000,-500.0,0.000268,2]
[426689906,1782745842000,-500.0,0.000268,2]
[426689880,1782745842000,-150.0,0.00026641,2]
[426689894,1782745842000,-151.0,0.000268,15]
[426689884,1782745842000,-150.0,0.00026795,7]
[426689863,1782745842000,-597.20377137,0.00026451,2]
[426689878,1782745842000,-150.0,0.00026571,7]
[426689904,1782745842000,-500.0,0.000268,2]
[426689860,1782745842000,-367.40059406,0.00026451,2]
[426689853,1782745842000,-208.93299555,0.00026451,2]
[426689856,1782745842000,-409.96092106,0.00026451,2]
[426689859,1782745842000,-403.36699853,0.00026451,2]
[426689861,1782745842000,-707.04669694,0.00026451,2]
[426689857,1782745842000,-536.99372849,0.00026451,2]
[426689854,1782745842000,-284.04385911,0.00026451,2]
[426689851,1782745842000,-561.56842998,0.00026451,2]
[426689852,1782745842000,-438.64957189,0.00026451,2]
[426689855,1782745842000,-552.07092397,0.00026451,2]
[426689858,1782745842000,-882.677232,0.00026451,2]
[426689877,1782745842000,-150.0,0.00026565,7]
[426689862,1782745842000,-342.91394514,0.00026451,2]
[426689865,1782745842000,-506.43894271,0.00026451,2]
[426689868,1782745842000,-441.48307724,0.00026451,2]
[426689871,1782745842000,-538.9824812,0.00026451,2]
[426689866,1782745842000,-458.53641085,0.00026451,2]
[426689870,1782745842000,-594.03838523,0.00026451,2]
[426689869,1782745842000,-164.36863685,0.00026451,2]
[426689867,1782745842000,-404.98391794,0.00026451,2]
[426689872,1782745842000,-427.04298387,0.00026451,2]
[426689873,1782745842000,-574.54522446,0.00026451,2]
[426689875,1782745842000,-150.0,0.00026488,7]
[426689876,1782745842000,-150.0,0.00026497,7]
[426689874,1782745842000,-150.0,0.0002646,7]
[426689864,1782745842000,-628.30018784,0.00026451,2]
[426689897,1782745842000,-151.0,0.000268,2]
[426689950,1782745842000,-828.59452353,0.00027004,2]
[426689917,1782745842000,-500.0,0.000268,2]
[426689935,1782745842000,-500.0,0.000268,2]
[426689941,1782745842000,-499.655273,0.000268,2]
[426689944,1782745842000,-151.0,0.000268,2]
[426689943,1782745842000,-151.0,0.000268,2]
[426689954,1782745842000,-836.64206739,0.00027004,2]
[426689948,1782745842000,-2832.27139098,0.00026969,2]
[426689955,1782745842000,-883.80837118,0.00027012,2]
[426689947,1782745842000,-151.09934801,0.00026934,2]
[426689946,1782745842000,-151.0,0.000268,2]
[426689953,1782745842000,-800.12338553,0.00027004,2]
[426689949,1782745842000,-790.17229919,0.00027004,2]
[426689951,1782745842000,-863.07579978,0.00027004,2]
[426689936,1782745842000,-500.0,0.000268,2]
[426689952,1782745842000,-781.61595359,0.00027004,2]
[426689958,1782745842000,-258.8322089,0.00027397,7]
[426689959,1782745842000,-396.84249185,0.00027397,2]
[426689966,1782745842000,-7292.58,0.00027397,10]
[426689962,1782745842000,-151.0,0.00027397,2]
[426689967,1782745842000,-155.93639075,0.00027397,2]
[426689965,1782745842000,-3098.76,0.00027397,2]
[426689957,1782745842000,-151.09934801,0.00027262,2]
[426689963,1782745842000,-151.0,0.00027397,2]
[426689960,1782745842000,-1500.0,0.00027397,2]
[426689964,1782745842000,-300.0,0.00027397,2]
[426689909,1782745842000,-500.0,0.000268,2]
[426689961,1782745842000,-1476.29,0.00027397,2]
[426689956,1782745842000,-152.82,0.00027146,2]
[426689938,1782745842000,-500.0,0.000268,2]
[426689945,1782745842000,-151.0,0.000268,2]
[426689942,1782745842000,-155.479638,0.000268,2]
[426689915,1782745842000,-500.0,0.000268,2]
[426689911,1782745842000,-500.0,0.000268,2]
[426689913,1782745842000,-500.0,0.000268,2]
[426689918,1782745842000,-500.0,0.000268,2]
[426689914,1782745842000,-500.0,0.000268,2]
[426689916,1782745842000,-500.0,0.000268,2]
[426689910,1782745842000,-500.0,0.000268,2]
[426689919,1782745842000,-500.0,0.000268,2]
[426689933,1782745842000,-500.0,0.000268,2]
[426689931,1782745842000,-500.0,0.000268,2]
[426689921,1782745842000,-500.0,0.000268,2]
[426689920,1782745842000,-500.0,0.000268,2]
[426689923,1782745842000,-500.0,0.000268,2]
[426689924,1782745842000,-500.0,0.000268,2]
[426689912,1782745842000,-500.0,0.000268,2]
[426689940,1782745842000,-500.0,0.000268,2]
[426689925,1782745842000,-500.0,0.000268,2]
[426689928,1782745842000,-500.0,0.000268,2]
[426689926,1782745842000,-500.0,0.000268,2]
[426689930,1782745842000,-500.0,0.000268,2]
[426689929,1782745842000,-500.0,0.000268,2]
[426689927,1782745842000,-500.0,0.000268,2]
[426689932,1782745842000,-500.0,0.000268,2]
[426689937,1782745842000,-500.0,0.000268,2]
[426689934,1782745842000,-500.0,0.000268,2]
[426689939,1782745842000,-500.0,0.000268,2]
[426689922,1782745842000,-500.0,0.000268,2]
[426690015,1782745843000,-470.73,0.00027711,7]
[426690018,1782745843000,-251.46,0.00027733,2]
[426689979,1782745843000,-1026.22057709,0.00027397,2]
[426690016,1782745843000,-783.26,0.00027711,7]
[426690014,1782745843000,-1290.56,0.00027711,7]
[426689999,1782745843000,-151.09934801,0.0002759,2]
[426690004,1782745843000,-251.46,0.00027642,2]
[426690003,1782745843000,-246.47,0.00027611,30]
[426690005,1782745843000,-246.47,0.00027642,2]
[426690002,1782745843000,-251.46,0.00027611,30]
[426690019,1782745843000,-246.47,0.00027733,2]
[426690012,1782745843000,-460.21,0.00027711,7]
[426690022,1782745843000,-251.46,0.00027794,30]
[426690035,1782745843000,-460.21,0.00027872,2]
[426690021,1782745843000,-246.47,0.00027764,7]
[426690024,1782745843000,-251.46,0.00027825,2]
[426690020,1782745843000,-251.46,0.00027764,7]
[426690013,1782745843000,-1319.64,0.00027711,7]
[426690023,1782745843000,-246.47,0.00027794,30]
[426690026,1782745843000,-735.0,0.0002784,2]
[426690036,1782745843000,-1319.64,0.00027872,2]
[426690025,1782745843000,-246.47,0.00027825,2]
[426690028,1782745843000,-326.0,0.0002784,2]
[426690030,1782745843000,-1035.69095974,0.00027845,2]
[426690034,1782745843000,-246.47,0.00027855,7]
[426690029,1782745843000,-948.20675903,0.00027845,2]
[426689997,1782745843000,-246.47,0.00027581,7]
[426690017,1782745843000,-800.74,0.00027711,7]
[426689995,1782745843000,-251.46,0.00027581,7]
[426689981,1782745843000,-1859.14,0.000274,7]
[426690009,1782745843000,-246.47,0.00027672,7]
[426690033,1782745843000,-251.46,0.00027855,7]
[426689969,1782745843000,-171.53134051,0.00027397,2]
[426689980,1782745843000,-1580.07,0.000274,7]
[426689971,1782745843000,-514.59402153,0.00027397,2]
[426689970,1782745843000,-343.06268102,0.00027397,2]
[426689968,1782745843000,-311.8727815,0.00027397,2]
[426689973,1782745843000,-170.46881067,0.00027397,2]
[426689976,1782745843000,-511.40643202,0.00027397,2]
[426689978,1782745843000,-258.8322089,0.00027397,7]
[426689974,1782745843000,-340.93762135,0.00027397,2]
[426689977,1782745843000,-681.8752427,0.00027397,2]
[426689982,1782745843000,-161.19607867,0.000274,2]
[426689984,1782745843000,-500.0,0.000275,7]
[426689989,1782745843000,-470.73,0.0002755,30]
[426689988,1782745843000,-1290.56,0.0002755,30]
[426689987,1782745843000,-1319.64,0.0002755,30]
[426689992,1782745843000,-251.46,0.00027551,2]
[426689986,1782745843000,-460.21,0.0002755,30]
[426689990,1782745843000,-783.26,0.0002755,30]
[426689983,1782745843000,-500.0,0.00027493,7]
[426689994,1782745843000,-246.47,0.00027551,2]
[426689985,1782745843000,-729.39393284,0.0002755,2]
[426689991,1782745843000,-800.74,0.0002755,30]
[426690006,1782745843000,-502.0,0.00027662,11]
[426690007,1782745843000,-200.0,0.00027662,2]
[426690010,1782745843000,-251.46,0.00027703,30]
[426690008,1782745843000,-251.46,0.00027672,7]
[426690011,1782745843000,-246.47,0.00027703,30]
[426690027,1782745843000,-867.0,0.0002784,2]
[426690054,1782745843000,-5714.82655052,0.00028,5]
[426690032,1782745843000,-960.14806264,0.00027845,2]
[426690070,1782745843000,-500.0,0.0002811,2]
[426690069,1782745843000,-246.47,0.00028099,2]
[426690072,1782745843000,-246.56,0.0002813,7]
[426690071,1782745843000,-251.51,0.0002813,7]
[426690075,1782745843000,-1290.56,0.00028194,7]
[426690077,1782745843000,-783.26,0.00028194,7]
[426690078,1782745843000,-800.74,0.00028194,7]
[426690076,1782745843000,-470.73,0.00028194,7]
[426690074,1782745843000,-1319.64,0.00028194,7]
[426690086,1782745843000,-242.29672607,0.00028573,2]
[426690087,1782745843000,-151.09934801,0.00028573,2]
[426690079,1782745843000,-1580.07,0.000282,7]
[426690083,1782745843000,-181.36,0.0002831,2]
[426690080,1782745843000,-1859.14,0.000282,7]
[426690081,1782745843000,-65274.0,0.000282,2]
[426690082,1782745843000,-151.09934801,0.00028245,2]
[426690084,1782745843000,-2000.0,0.00028455,7]
[426690088,1782745843000,-502.0,0.00028631,12]
[426690094,1782745843000,-158.0,0.00028701,30]
[426690091,1782745843000,-342.66032286,0.00028658,2]
[426690092,1782745843000,-155.0,0.00028701,30]
[426690090,1782745843000,-241.7707835,0.00028657,2]
[426690093,1782745843000,-154.0,0.00028701,30]
[426690095,1782745843000,-199.0,0.00028701,30]
[426690089,1782745843000,-152.82,0.00028654,2]
[426690096,1782745843000,-170.0,0.00028701,30]
[426690031,1782745843000,-937.93914431,0.00027845,2]
[426690073,1782745843000,-460.21,0.00028194,7]
[426690064,1782745843000,-251.46,0.00028038,7]
[426690068,1782745843000,-251.46,0.00028099,2]
[426690063,1782745843000,-800.74,0.00028033,30]
[426690038,1782745843000,-470.73,0.00027872,2]
[426690066,1782745843000,-251.46,0.00028069,30]
[426690037,1782745843000,-1290.56,0.00027872,2]
[426690041,1782745843000,-251.46,0.00027886,30]
[426690039,1782745843000,-783.26,0.00027872,2]
[426690040,1782745843000,-800.74,0.00027872,2]
[426690048,1782745843000,-251.46,0.00027947,7]
[426690047,1782745843000,-151.09934801,0.00027918,2]
[426690045,1782745843000,-251.46,0.00027916,2]
[426690046,1782745843000,-246.47,0.00027916,2]
[426690044,1782745843000,-466.38885103,0.00027906,2]
[426690043,1782745843000,-300.0,0.000279,10]
[426690060,1782745843000,-1290.56,0.00028033,30]
[426690042,1782745843000,-246.47,0.00027886,30]
[426690049,1782745843000,-246.47,0.00027947,7]
[426690065,1782745843000,-246.47,0.00028038,7]
[426690050,1782745843000,-852.34405337,0.00027958,2]
[426690062,1782745843000,-783.26,0.00028033,30]
[426690061,1782745843000,-470.73,0.00028033,30]
[426690055,1782745843000,-216.58458871,0.00028,10]
[426690067,1782745843000,-246.47,0.00028069,30]
[426690057,1782745843000,-246.47,0.00028008,2]
[426690059,1782745843000,-1319.64,0.00028033,30]
[426690056,1782745843000,-251.46,0.00028008,2]
[426690053,1782745843000,-246.47,0.00027977,30]
[426690052,1782745843000,-251.46,0.00027977,30]
[426690051,1782745843000,-150.0,0.00027973,2]
[426690058,1782745843000,-460.21,0.00028033,30]
[426690150,1782745844000,-502.0,0.000296,13]
[426690146,1782745844000,-182.3488221,0.000295,2]
[426690141,1782745844000,-1877.39875945,0.000295,2]
[426690143,1782745844000,-250.50490803,0.000295,2]
[426690128,1782745844000,-1831.98,0.00029315,2]
[426690140,1782745844000,-1831.98,0.00029479,2]
[426690139,1782745844000,-160.0,0.00029478,2]
[426690138,1782745844000,-160.0,0.00029475,2]
[426690149,1782745844000,-1775.0,0.00029584,5]
[426690142,1782745844000,-295.7857768,0.000295,2]
[426690144,1782745844000,-1532.40748013,0.000295,2]
[426690158,1782745844000,-199.0,0.00029701,30]
[426690151,1782745844000,-1831.98,0.00029644,2]
[426690152,1782745844000,-1877.39875945,0.000297,2]
[426690148,1782745844000,-152.0,0.00029578,4]
[426690154,1782745844000,-250.50490803,0.000297,2]
[426690164,1782745844000,-157.0,0.00029705,30]
[426690157,1782745844000,-158.0,0.00029701,30]
[426690155,1782745844000,-155.0,0.00029701,30]
[426690156,1782745844000,-154.0,0.00029701,30]
[426690153,1782745844000,-295.7857768,0.000297,2]
[426690162,1782745844000,-510.0,0.00029705,30]
[426690159,1782745844000,-170.0,0.00029701,30]
[426690163,1782745844000,-153.0,0.00029705,30]
[426690130,1782745844000,-150.0,0.00029372,2]
[426690147,1782745844000,-151.09934801,0.00029557,2]
[426690135,1782745844000,-1580.07,0.000294,7]
[426690114,1782745844000,-1208.30611969,0.00029108,2]
[426690136,1782745844000,-1859.14,0.000294,7]
[426690098,1782745844000,-154.0,0.00028701,30]
[426690097,1782745844000,-157.0,0.00028701,30]
[426690107,1782745844000,-151.09934801,0.00028901,2]
[426690104,1782745844000,-1000.0,0.00028767,2]
[426690108,1782745844000,-1000.0,0.00029,2]
[426690100,1782745844000,-153.0,0.00028705,30]
[426690102,1782745844000,-224.0,0.00028705,30]
[426690106,1782745844000,-2140.28171703,0.0002888,60]
[426690101,1782745844000,-157.0,0.00028705,30]
[426690099,1782745844000,-510.0,0.00028705,30]
[426690105,1782745844000,-1022.81286405,0.000288,2]
[426690103,1782745844000,-152.0,0.00028705,30]
[426690110,1782745844000,-257.43315276,0.00029,2]
[426690119,1782745844000,-4088.718988,0.00029134,2]
[426690117,1782745844000,-300.0,0.00029133,10]
[426690116,1782745844000,-1120.17273975,0.00029108,2]
[426690160,1782745844000,-157.0,0.00029701,30]
[426690115,1782745844000,-1094.26233503,0.00029108,2]
[426690109,1782745844000,-216.58458871,0.00029,30]
[426690112,1782745844000,-5528.0,0.00029,3]
[426690111,1782745844000,-231.55362948,0.00029,21]
[426690113,1782745844000,-1106.24121887,0.00029108,2]
[426690120,1782745844000,-214.09006206,0.00029222,7]
[426690126,1782745844000,-151.09934801,0.00029229,2]
[426690132,1782745844000,-485.96,0.000294,7]
[426690122,1782745844000,-319.55,0.00029222,120]
[426690124,1782745844000,-345.34,0.00029222,120]
[426690137,1782745844000,-216.58458871,0.00029475,2]
[426690161,1782745844000,-154.0,0.00029701,30]
[426690118,1782745844000,-184593.8029622,0.00029134,2]
[426690168,1782745844000,-10046.7725859,0.000298,2]
[426690199,1782745844000,-1000.13,0.00030136,2]
[426690195,1782745844000,-14182.49937388,0.0003013,2]
[426690192,1782745844000,-10046.7725859,0.000301,2]
[426690203,1782745844000,-1000.13,0.00030136,2]
[426690196,1782745844000,-30152.294812,0.0003013,2]
[426690204,1782745844000,-1000.13,0.00030136,2]
[426690206,1782745844000,-1000.13,0.00030136,2]
[426690205,1782745844000,-1000.13,0.00030136,2]
[426690208,1782745844000,-1000.13,0.00030136,2]
[426690209,1782745844000,-1000.13,0.00030136,2]
[426690207,1782745844000,-1000.13,0.00030136,2]
[426690210,1782745844000,-1000.13,0.00030136,2]
[426690212,1782745844000,-1000.13,0.00030136,2]
[426690214,1782745844000,-1000.13,0.00030136,2]
[426690213,1782745844000,-1000.13,0.00030136,2]
[426690211,1782745844000,-1000.13,0.00030136,2]
[426690215,1782745844000,-1000.13,0.00030136,2]
[426690216,1782745844000,-1000.13,0.00030136,2]
[426690219,1782745844000,-1000.13,0.00030136,2]
[426690218,1782745844000,-1000.13,0.00030136,2]
[426690224,1782745844000,-402.18706998,0.00030136,2]
[426690222,1782745844000,-500.0,0.00030136,2]
[426690217,1782745844000,-1000.13,0.00030136,2]
[426690220,1782745844000,-1000.13,0.00030136,2]
[426690221,1782745844000,-1000.19777974,0.00030136,2]
[426690223,1782745844000,-502.7070817,0.00030136,2]
[426690165,1782745844000,-224.0,0.00029705,30]
[426690193,1782745844000,-2832.27139098,0.00030113,2]
[426690197,1782745844000,-331.37629794,0.00030135,10]
[426690145,1782745844000,-10046.7725859,0.000295,2]
[426690202,1782745844000,-1000.13,0.00030136,2]
[426690167,1782745844000,-1532.40748013,0.000298,2]
[426690201,1782745844000,-1000.13,0.00030136,2]
[426690173,1782745844000,-250.0,0.00029928,7]
[426690171,1782745844000,-257.48530144,0.000299,2]
[426690169,1782745844000,-1831.98,0.00029808,2]
[426690172,1782745844000,-5528.0,0.000299,5]
[426690166,1782745844000,-152.0,0.00029705,30]
[426690174,1782745844000,-332.36496546,0.00029972,7]
[426690177,1782745844000,-295.7857768,0.0003,2]
[426690175,1782745844000,-1831.98,0.00029973,2]
[426690176,1782745844000,-1877.39875945,0.0003,2]
[426690180,1782745844000,-10638.51,0.0003,2]
[426690181,1782745844000,-9999.89,0.0003,2]
[426690189,1782745844000,-345.34,0.00030044,120]
[426690170,1782745844000,-151.09934801,0.00029885,2]
[426690178,1782745844000,-250.50490803,0.0003,2]
[426690179,1782745844000,-12499.91,0.0003,2]
[426690198,1782745844000,-1000.13,0.00030136,2]
[426690191,1782745844000,-1532.40748013,0.000301,2]
[426690187,1782745844000,-216.58458871,0.0003,7]
[426690186,1782745844000,-200.14986379,0.0003,2]
[426690194,1782745844000,-154.01627154,0.00030126,2]
[426690185,1782745844000,-800.0,0.0003,2]
[426690183,1782745844000,-15000.0,0.0003,2]
[426690188,1782745844000,-319.55,0.00030044,120]
[426690190,1782745844000,-173.09,0.00030079,120]
[426690182,1782745844000,-22499.91,0.0003,2]
[426690184,1782745844000,-14351.63,0.0003,2]
[426690200,1782745844000,-1000.13,0.00030136,2]
[426690268,1782745845000,-251.0,0.0003036,2]
[426690262,1782745845000,-151.0,0.000303,7]
[426690260,1782745845000,-151.0,0.000303,7]
[426690267,1782745845000,-305.11921922,0.0003036,2]
[426690265,1782745845000,-844.16984249,0.00030315,28]
[426690266,1782745845000,-1262.82759788,0.00030315,28]
[426690269,1782745845000,-251.0,0.0003036,2]
[426690279,1782745845000,-500.0,0.00030562,20]
[426690280,1782745845000,-502.0,0.00030569,14]
[426690277,1782745845000,-151.09934801,0.00030541,2]
[426690271,1782745845000,-1532.40748013,0.000304,2]
[426690274,1782745845000,-152.5325826,0.00030477,7]
[426690272,1782745845000,-10046.7725859,0.000304,2]
[426690278,1782745845000,-500.0,0.00030562,20]
[426690273,1782745845000,-151.0,0.000304,7]
[426690276,1782745845000,-254.21861249,0.000305,2]
[426690275,1782745845000,-800.0,0.000305,2]
[426690281,1782745845000,-251.0,0.0003069,2]
[426690287,1782745845000,-251.0,0.0003069,2]
[426690285,1782745845000,-251.0,0.0003069,2]
[426690261,1782745845000,-151.0,0.000303,7]
[426690270,1782745845000,-251.0,0.0003036,2]
[426690263,1782745845000,-260.30222,0.000303,7]
[426690251,1782745845000,-152.5325826,0.0003018,5]
[426690258,1782745845000,-1859.14,0.000303,7]
[426690238,1782745845000,-300.0,0.00030136,2]
[426690235,1782745845000,-300.0,0.00030136,2]
[426690237,1782745845000,-300.0,0.00030136,2]
[426690239,1782745845000,-185.67251033,0.00030136,2]
[426690243,1782745845000,-436.96599853,0.00030137,2]
[426690241,1782745845000,-316.12606361,0.00030137,2]
[426690240,1782745845000,-158.0630318,0.00030137,2]
[426690242,1782745845000,-218.48299926,0.00030137,2]
[426690245,1782745845000,-1000.0,0.00030137,4]
[426690246,1782745845000,-1831.97928048,0.00030137,2]
[426690249,1782745845000,-217.0,0.0003016,2]
[426690282,1782745845000,-251.0,0.0003069,2]
[426690244,1782745845000,-152.5325826,0.00030137,2]
[426690256,1782745845000,-250.50490803,0.000303,2]
[426690255,1782745845000,-295.7857768,0.000303,2]
[426690247,1782745845000,-490.0,0.0003016,2]
[426690248,1782745845000,-578.0,0.0003016,2]
[426690252,1782745845000,-15871.90662225,0.000302,2]
[426690250,1782745845000,-152.82,0.00030162,2]
[426690254,1782745845000,-1877.39875945,0.000303,2]
[426690253,1782745845000,-151.09934801,0.00030213,2]
[426690257,1782745845000,-1580.07,0.000303,7]
[426690264,1782745845000,-152.53116749,0.00030315,30]
[426690259,1782745845000,-485.96,0.000303,7]
[426690283,1782745845000,-251.0,0.0003069,2]
[426690301,1782745845000,-155.0,0.00030701,30]
[426690289,1782745845000,-1877.39875945,0.000307,2]
[426690316,1782745845000,-319.57,0.00030866,120]
[426690315,1782745845000,-150.0,0.00030841,2]
[426690329,1782745845000,-251.0,0.0003102,2]
[426690319,1782745845000,-224.0,0.0003095,2]
[426690318,1782745845000,-151.09934801,0.00030869,2]
[426690320,1782745845000,-10046.7725859,0.00031,2]
[426690322,1782745845000,-1000.0,0.00031,7]
[426690323,1782745845000,-230.13250454,0.00031,2]
[426690321,1782745845000,-800.0,0.00031,2]
[426690325,1782745845000,-151.0,0.00031,7]
[426690307,1782745845000,-154.0,0.00030701,30]
[426690326,1782745845000,-154.061996,0.00031,7]
[426690324,1782745845000,-151.0,0.00031,7]
[426690327,1782745845000,-251.0,0.0003102,2]
[426690330,1782745845000,-251.0,0.0003102,2]
[426690332,1782745845000,-251.0,0.0003102,2]
[426690331,1782745845000,-251.0,0.0003102,2]
[426690336,1782745845000,-1859.14,0.000311,7]
[426690334,1782745845000,-599.17,0.0003108,2]
[426690333,1782745845000,-251.0,0.0003102,2]
[426690335,1782745845000,-1580.07,0.000311,7]
[426690236,1782745845000,-300.0,0.00030136,2]
[426690328,1782745845000,-251.0,0.0003102,2]
[426690286,1782745845000,-251.0,0.0003069,2]
[426690311,1782745845000,-224.0,0.00030705,30]
[426690313,1782745845000,-1708.641,0.00030815,28]
[426690284,1782745845000,-251.0,0.0003069,2]
[426690293,1782745845000,-10046.7725859,0.000307,2]
[426690288,1782745845000,-251.0,0.0003069,2]
[426690290,1782745845000,-295.7857768,0.000307,2]
[426690291,1782745845000,-250.50490803,0.000307,2]
[426690292,1782745845000,-1532.40748013,0.000307,2]
[426690305,1782745845000,-170.0,0.00030701,30]
[426690295,1782745845000,-151.0,0.000307,7]
[426690294,1782745845000,-151.0,0.000307,7]
[426690296,1782745845000,-151.0,0.000307,7]
[426690314,1782745845000,-1645.2776185,0.0003084,2]
[426690297,1782745845000,-151.0,0.000307,7]
[426690302,1782745845000,-154.0,0.00030701,30]
[426690299,1782745845000,-151.0,0.000307,7]
[426690304,1782745845000,-199.0,0.00030701,30]
[426690303,1782745845000,-158.0,0.00030701,30]
[426690300,1782745845000,-151.0,0.000307,7]
[426690306,1782745845000,-157.0,0.00030701,30]
[426690309,1782745845000,-153.0,0.00030705,30]
[426690308,1782745845000,-510.0,0.00030705,30]
[426690310,1782745845000,-157.0,0.00030705,30]
[426690317,1782745845000,-345.34,0.00030866,120]
[426690298,1782745845000,-151.0,0.000307,7]
[426690312,1782745845000,-152.0,0.00030705,30]